{"text_format":"2","workbook":"xlsx","n_sheets":4,"sheets":["Приложение","Лист1","Лист2","Лист3"],"not_rendered":{"charts":0,"images":0,"macros":0,"external_links":0,"defined_names":2,"comments":0,"pivot_tables":0},"unopened":[],"bounds":{"document_bytes":16777216,"sheet_cells":100000,"run_cost":"one","rows_first":2000,"rows_last":500,"rows_between":2000,"halvings":0,"cell_chars":16384,"cell_head_chars":4096},"cells_cut":0,"cells_raw":0,"read":"whole","date_system":"1900"}

{"sheet":"Приложение","index":0,"n_rows":83,"n_cols":18,"rows_kept":83,"cut":false,"hidden":false,"merged":[[0,0,1,17],[2,0,2,1],[3,0,12,0],[3,1,12,1],[3,2,5,10],[3,11,6,11],[3,12,5,17],[7,4,12,4],[7,5,12,5],[4,18,6,20],[6,2,6,4],[6,5,6,7],[6,8,6,10],[6,12,7,13],[6,14,12,14],[6,15,12,15],[6,16,7,17],[7,2,12,2],[7,3,12,3],[82,0,82,1],[8,12,12,12],[8,13,12,13],[8,16,12,16],[8,17,12,17],[79,0,79,1],[80,0,80,1],[7,6,12,6],[7,7,12,7],[7,8,12,8],[7,9,12,9],[7,10,12,10],[7,11,12,11]]}
["Уточненный реестр расходных обязательств Шарангского муниципального округа Нижегородской области на 2023 финансовый год и на плановый период 2024 и 2025 годов"]
[]
["Единица измерения: тыс. руб. (с точностью до первого десятичного знака)",{"$nulls":16},"тыс. рублей"]
["№ п/п","Наименование полномочия, \nрасходного обязательства","Правовое основание финансового обеспечения расходных полномочий муниципальных образований ",{"$nulls":8},"Код расхода по БК ","Объем средств на исполнение расходного обязательства"]
[]
[]
[null,null,"Российской Федерации, субъекта Российской Федерации",null,null,"Субъекта Российской Федерации",null,null," Органа местного самоуправления",null,null,null,"отчетный\n2021г.",null,"текущий\n2022 г.              (по состоянию на 01.10.2022 года)","очередной\n2023 г.","плановый период\n"]
[null,null,"наименование, номер и дата","номер статьи (подстатьи), пункта (подпункта)","дата вступления в силу, срок действия","наименование, номер и дата","номер статьи (подстатьи), пункта (подпункта)","дата вступления в силу, срок действия","наименование, номер и дата","номер статьи (подстатьи), пункта (подпункта)","дата вступления в силу, срок действия","раздел/\nподраздел"]
[{"$nulls":12},"утвержденные бюджетные назначения ","исполнено",null,null,"2024 г.","2025 г."]
[]
[]
[]
[]
["-//-",1,"2","3",4,5,6,7,8,"9","10",11,12,13,14,15,"16","17"]
["8. ","Расходные обязательства, возникшие в результате принятия нормативных правовых актов муниципального округа, заключения договоров (соглашений), всего, в том числе",{"$nulls":9},"х",null,null,null,{"$f":"P17+P45+P55+P61+P74","v":810889.39999999991},{"$f":"Q17+Q45+Q55+Q61+Q74+Q77","v":737309.2},{"$f":"R17+R45+R55+R61+R74+R77","v":750046.10000000009}]
[null,"Муниципальные услуги (работы)",{"$nulls":13},436128.8,424886.3,430100.2]
["8.1. ","Расходные обязательства, возникшие в результате принятия нормативных правовых актов муниципального округа, заключения договоров (соглашений) в рамках реализации вопросов местного значения муниципального округа, всего, в том числе",{"$nulls":9},"х",null,null,null,{"$f":"P18+P19+P20+P21+P22+P23+P24+P25+P26+P27+P28+P29+P30+P31+P32+P33+P34+P35+P36+P37+P38+P39+P40+P41+P42+P43+P44","v":475192.89999999997},{"$f":"Q18+Q19+Q20+Q21+Q22+Q23+Q24+Q25+Q26+Q27+Q28+Q29+Q30+Q31+Q32+Q33+Q34+Q35+Q36+Q37+Q38+Q39+Q40+Q41+Q42+Q43+Q44","v":394472.2},{"$f":"R18+R19+R20+R21+R22+R23+R24+R25+R26+R27+R28+R29+R30+R31+R32+R33+R34+R35+R36+R37+R38+R39+R40+R41+R42+R43+R44","v":395991.70000000007}]
["8.1.1.","составление и рассмотрение проекта бюджета муниципального округа, утверждение и исполнение бюджета муниципального округа, осуществление контроля за его исполнением, составление и утверждение отчета об исполнении бюджета муниципального округа","1)Федеральный Закон от 06.10.2003 №131-ФЗ \"Об общих принципах организации местного самоуправления в Российской Федерации\"                                                    2) Федеральный закон от 02.03.2007 № 25-ФЗ \"О муниципальной службе в\nРоссийской Федерации\"        ","1)ст.34 п.9\n\n\n\n\n\n2) ст.22 п.2\n\n\n\n\n","1) 18.10.2003, не установлен\n\n\n\n\n2)02.03.2007, не установлен\n\n\n","Закон Нижегородской области от 03.08.2007 №99-3 \"О муниципальной службе в Нижегородской области\"","в целом","03.08.2007 - не установлен",null,null,null,"0106                 0113",null,null,null,18550.099999999999,11132.2,11132.2]
["8.1.2.","владение, пользование и распоряжение имуществом, находящимся в муниципальной собственности муниципального округа","1) Федеральный закон от 06.10.2003 № 131-ФЗ \"Об общих принципах\nорганизации местного самоуправления в Российской Федерации\";\n2) Федеральный закон от 29.07.98 № 135-ФЗ \"Об оценочной деятельности в Российской Федерации\";\n3) Федеральный закон от 13.07.2015 № 218-ФЗ \"О государственной\nрегистрации недвижимости\"","1)ст.16 пункт 1 подпункт 3;\n\n\n\n2) статья 8;\n\n\n3) в целом","1) 18.10.2003, не установлен;\n\n\n\n2) 03.08.98;\n\n\n3) с 01.01.2017, не установлен",{"$nulls":6},"0113              0406",null,null,null,1524.9,50,50]
["8.1.3.","организация в границах муниципального округа электро-, тепло-, газо- и водоснабжения населения, водоотведения, снабжения населения топливом в пределах полномочий, установленных законодательством Российской Федерации","1) Федеральный закон от 06.10.2003 № 131-ФЗ \"Об общих принципах\nорганизации местного самоуправления в Российской Федерации\";\n2)  Постановление Правительства РФ от 18.09.2020 №1492 \"Об общих требованиях к нормативным правовым актам, муниципальным правовым актам, регулирующим предоставление субсидий, в том числе грантов в форме субсидий, юридическим лицам, индивидуальным предпринимателям, а также физическим лицам - производителям товаров, работ, услуг, и о признании утратившими силу некоторых актов Правительства Российской Федерации и отдельных положений, некоторых актов Правительства Российской Федерации\"","1)ст.16 пункт 1 подпункт 4;\n\n\n                                                     2) в целом;\n\n\n                                                                                                                                                                                                                        \n\n\n\n\n\n","1) 18.10.2003, не установлен;\n\n\n\n2)  18.09.2020, не установлен",{"$nulls":6},"0502      0505",null,null,null,7030.7,999.3,999.3]
["8.1.4.","дорожная деятельность в отношении автомобильных дорог местного значения в границах муниципального округа и обеспечение безопасности дорожного движения на них, включая создание и обеспечение функционирования парковок (парковочных мест), осуществление муниципального контроля на автомобильном транспорте, городском наземном электрическом транспорте и в дорожном хозяйстве в границах  муниципального округа, организация дорожного движения, а также осуществление иных полномочий в области использования автомобильных дорог и осуществления дорожной деятельности в соответствии с законодательством Российской Федерации","1) Федеральный закон от 06.10.2003 № 131-ФЗ \"Об общих принципах\nорганизации местного самоуправления в Российской Федерации\";\n2) Федеральный закон от 08.11.2007 №257-ФЗ \"Об автомобильных дорогах и о дорожной деятельности в Российской Федерации и о внесении изменений в отдельные законодательные акты Российской Федерации\";\n3) Федеральный закон от 10.12.1995 №196-ФЗ \"О безопасности дорожного движения\"\n\n","1)ст.16 пункт 1 подпункт 5;\n\n\n                                     2) гл.1,ст.8,п.6, пп.4; гл.2;\n\n\n\n                                                                                                                                                                                                                                                                                                                                    3) ст.5, ст.6 п.4","1) 18.10.2003, не установлен;\n\n\n\n2) с 14.11.2007, не установлен;\n\n\n\n\n3) с 11.12.1995, не установлен","1) Закон Нижегородской области от 04.12.2008 № 157-З \"Об автомобильных дорогах и о дорожной деятельности в Нижегородской области\";\n2)  Постановление Правительства Нижегородской области от 22.12.2017 №945 \"О реализации на территории Нижегородской области проекта инициативного бюджетирования \"Вам решать!\"","1) ст.6;\n\n\n\n\n2) в целом\n\n\n\n","1) с 23.12.2008, не установлен;\n\n\n\n2) с 27.12.2017, не установлен\n\n\n\n ",null,null,null,"0409",null,null,null,50590.3,11787.3,12962.6]
["8.1.5.","обеспечение проживающих в муниципальном округе и нуждающихся в жилых помещениях малоимущих граждан жилыми помещениями, организация строительства и содержания муниципального жилищного фонда, создание условий для жилищного строительства, осуществление муниципального жилищного контроля, а также иных полномочий органов местного самоуправления в соответствии с жилищным законодательством","1) Федеральный закон от 06.10.2003 № 131-ФЗ \"Об общих принципах\nорганизации местного самоуправления в Российской Федерации\";","1)ст.16 пункт 1 подпункт 6;","1) 18.10.2003, не установлен;","1)  Постановление Правительства Нижегородской области от 04.08.2021 № 708 \"О внесении изменений в государственную программу \"Развитие жилищного строительства и государственная поддержка граждан по обеспечению жильем на территории Нижегородской области\", утвержденную постановлением Правительства Нижегородской области от 30 апреля 2014 г. № 302, о приостановлении действия отдельного ее положения в редакции изменений, утвержденных настоящим постановлением, и о признании утратившими силу некоторых постановлений Правительства Нижегородской области\" ","1) в целом\n\n\n\n\n\n\n                                                                                                                                                                                                                                                                                                                                                                                                                                                                                                                                                                                                                                                                                                                                                                                   \n\n\n","1) 05.08.2021, не ограничен\n\n\n\n\n\n\n",null,null,null," 0501      1004",null,null,null,6858.4,2832,2440.6999999999998]
["8.1.6.","создание условий для предоставления транспортных услуг населению и организация транспортного обслуживания населения в границах муниципального округа (в части автомобильного транспорта)","1) Федеральный закон от 13.07.2015 №220-ФЗ \"Об организации регулярных перевозок пассажиров и багажа автомобильным транспортом и городским наземным электрическим транспортом в Российской Федерации и о внесении изменений в отдельные законодательные акты Российской Федерации\"\n\n","1)ст.2   пункты 5\n\n\n\n\n\n\n\n\n\n\n\n\n","1) 14.07.2015, не установлен;\n\n\n\n\n\n\n\n",{"$nulls":6},"0408",null,null,null,8410.7000000000007,4414.3,0]
[null," участие в профилактике терроризма и экстремизма, а также в минимизации и (или) ликвидации последствий проявлений терроризма и экстремизма в границах муниципального округа","1) Федеральный закон от 06.10.2003 № 131-ФЗ \"Об общих принципах\nорганизации местного самоуправления в Российской Федерации\";\n2) Федеральный закон от 06.03.2006 №35-ФЗ \"О противодействии терроризму\"\n\n\n","1)ст.16 пункт 1 подпункт 7.1;\n\n\n\n2) ст.5.2\n\n","1) 18.10.2003, не установлен;\n\n\n\n2) 10.03.2006, не установлен\n\n\n\n\n\n","Закон Нижегородской области от 04.01.1996 №17-З \"О защите населения и территорий Нижегородской области от чрезвычайных ситуаций природного и техногенного характера\"","ст.25 п.1",{"$nulls":4},"0701            0702             0703        0801",null,null,null,6667.7,6667.7,6667.7]
["8.1.7.","участие в предупреждении и ликвидации последствий чрезвычайных ситуаций в границах муниципального округа","1) Федеральный закон от 06.10.2003 № 131-ФЗ \"Об общих принципах\nорганизации местного самоуправления в Российской Федерации\";\n2) Федеральный закон от 21.12.1994 №68-ФЗ \"О защите населения и территорий от чрезвычайных ситуаций природного и теногенного характера\"\n\n","1)ст.16 пункт 1 подпункт 8;\n\n\n\n\n2)ст.11 пункт2 подпункт а,в\n\n\n\n\n\n\n\n","1) 18.10.2003, не установлен;\n\n\n\n\n2) 24.12.1994, не установлен\n\n\n","1) Закон Нижегородской области от 04.01.1996 № 17-З \"О защите населения и территорий Нижегородской области от чрезвычайных ситуаций природного и техногенного характера\"\n","1) гл.6, ст.23,24,25;\n\n\n\n\n\n\n","1) 24.01.1996, не установлен;\n\n\n\n\n\n",null,null,null,"0310             ",null,null,null,4126.1000000000004,4126.1000000000004,4126.1000000000004]
["8.1.8.","обеспечение первичных мер пожарной безопасности в границах муниципального округа","1) Федеральный закон от 06.10.2003 № 131-ФЗ \"Об общих принципах\nорганизации местного самоуправления в Российской Федерации\";\n2) Федеральный закон от 21.12.1994 №69-ФЗ \"О пожарной безопасности\"\n\n","1)ст.16 пункт 1 подпункт 10;\n\n\n\n\n2)ст.19\n\n\n\n\n\n\n\n","1) 18.10.2003, не установлен;\n\n\n\n\n2) 26.12.1994, не установлен\n\n\n","1) Закон Нижегородской области от 26.10.1995 № 16-З \"О пожарной безопасности\"; ","1) гл.2 статья 6","1) 15.11.1995, не установлен",null,null,null,"0310        0701            0702             0703        0801",null,null,null,8904.9,8904.9,8904.9]
["8.1.9.","организация предоставления общедоступного и бесплатного дошкольного образования по основным общеобразовательным программам в муниципальных образовательных организациях (за исключением полномочий по финансовому обеспечению реализации основных общеобразовательных программ в соответствии с федеральными государственными образовательными стандартами), создание условий для осуществления присмотра и ухода за детьми, содержания детей в муниципальных образовательных организациях","1) Федеральный закон от 06.10.2003 № 131-ФЗ \"Об общих принципах\nорганизации местного самоуправления в Российской Федерации\";\n2) Федеральный закон от 29.12.2012 №273-ФЗ \"Об образовании в Российской Федерации\";\n3) Постановление Правительства Российской Федерации от 26.12.2017 №1642 «Об утверждении государственной программы Российской Федерации «Развитие образования»»  \n\n","1)ст.16 пункт 1 подпункт 13;\n\n\n\n\n2)ст.9 п.1\n\n\n\n3) в целом\n\n\n\n","1) 18.10.2003, не установлен;\n\n\n\n\n2) 01.09.2013, не установлен\n\n\n3) с 01.01.2018, не установлен","1) Постановление правительства Нижегородской области от 30.04.2014 №301 \"Об утверждении программы Развития образования Нижегородской области\"","1) п.4","1) с 01.01.2015, не установлен",null,null,null,"0701",null,null,null,62320.5,62315.1,62235.1]
["8.1.10.","организация предоставления общедоступного и бесплатного начального общего, основного общего, среднего общего образования по основным общеобразовательным программам в муниципальных образовательных организациях (за исключением полномочий по финансовому обеспечению реализации основных общеобразовательных программ в соответствии с федеральными государственными образовательными стандартами) (в части начального общего, основного общего, среднего общего образования в муниципальных общеобразовательных организациях в сельской местности)","1) Федеральный закон от 06.10.2003 № 131-ФЗ \"Об общих принципах\nорганизации местного самоуправления в Российской Федерации\";\n2) Федеральный закон от 29.12.2012 №273-ФЗ \"Об образовании в Российской Федерации\";\n3) Постановление Правительства Российской Федерации от 26.12.2017 № 1642 «Об утверждении государственной программы Российской Федерации «Развитие образования»»  \n\n","1)ст.16 пункт 1 подпункт 13;\n\n\n\n\n2)ст.9 п.1\n\n\n\n3) в целом\n\n\n\n","1) 18.10.2003, не установлен;\n\n\n\n\n2) 01.09.2013, не установлен\n\n\n3) с 01.01.2018, не установлен","1) Постановление правительства Нижегородской области от 30.04.2014 №301 \"Об утверждении программы Развития образования Нижегородской области\"","1) п.4","1) с 01.01.2015, не установлен",null,null,null,"0702",null,null,null,47392.2,46378.8,46463]
["8.1.11.","организация предоставления дополнительного образования детей в муниципальных образовательных организациях (за исключением дополнительного образования детей, финансовое обеспечение которого осуществляется органами государственной власти субъекта Российской Федерации)","1) Федеральный закон от 06.10.2003 № 131-ФЗ \"Об общих принципах\nорганизации местного самоуправления в Российской Федерации\";\n2) Федеральный закон от 29.12.2012 №273-ФЗ \"Об образовании в Российской Федерации\";\n3) Постановление Правительства Российской Федерации от 26.12.2017 г. № 1642 «Об утверждении государственной программы Российской Федерации «Развитие образования»»  \n\n","1)ст.16 пункт 1 подпункт 13;\n\n\n\n\n2)ст.9 п.1\n\n\n\n3) в целом\n\n\n\n","1) 18.10.2003, не установлен;\n\n\n\n\n2) 01.09.2013, не установлен\n\n\n3) с 01.01.2018, не установлен","1) Постановление правительства Нижегородской области от 30.04.2014 №301 \"Об утверждении программы Развития образования Нижегородской области\"","1) п.4","1) с 01.01.2015, не установлен",null,null,null,"0703",null,null,null,46335.1,35907.300000000003,35907.300000000003]
["8.1.12.","осуществление в пределах своих полномочий мероприятий по обеспечению организации отдыха детей в каникулярное время, включая мероприятия по обеспечению безопасности их жизни и здоровья","1) Федеральный закон от 06.10.2003 № 131-ФЗ \"Об общих принципах организации местного самоуправления в Российской Федерации\"","1) в целом","1) 06.10.2003, не установлен",null,null,null,"1) Постановление Правительства Нижегородской области от 01.07.2019 № 412 \"Об организации отдыха, оздоровления и занятости детей и молодежи Нижегородской области\"","1) в целом","1) 01.07.2012, не установлен","0707",null,null,null,2123.3000000000002,2123.3000000000002,2123.3000000000002]
["8.1.13.","организация предоставления общедоступного и бесплатного дошкольного, начального общего, основного общего, среднего общего образования по основным общеобразовательным программам в муниципальных образовательных организациях (за исключением полномочий по финансовому обеспечению реализации основных общеобразовательных программ в соответствии с федеральными государственными образовательными стандартами), организация предоставления дополнительного образования детей в муниципальных образовательных организациях (за исключением дополнительного образования детей, финансовое обеспечение которого осуществляется органами государственной власти субъекта Российской Федерации), создание условий для осуществления присмотра и ухода за детьми, содержания детей в муниципальных образовательных организациях (в части обеспечения деятельности прочих учреждений образования (централизованные бухгалтерии, межшкольные учебные комбинаты, хозяйственные эксплуатационные конторы и другие))","1) Федеральный закон от 06.10.2003 № 131-ФЗ \"Об общих принципах\nорганизации местного самоуправления в Российской Федерации\";\n2) Федеральный закон от 29.12.2012 №273-ФЗ \"Об образовании в Российской Федерации\";\n3) Постановление Правительства Российской Федерации от 26.12.2017 № 1642 «Об утверждении государственной программы Российской Федерации «Развитие образования»»  \n\n","1)ст.16 пункт 1 подпункт 13;\n\n\n\n\n2)ст.9 п.1\n\n\n\n3) в целом\n\n\n\n","1) 18.10.2003, не установлен;\n\n\n\n\n2) 01.09.2013, не установлен;\n\n\n3) с 01.01.2018, не установлен\n\n\n","1) Постановление правительства Нижегородской области от 30.04.2014 №301 \"Об утверждении программы Развития образования Нижегородской области\"","1) п.4","1) с 01.01.2015, не установлен",null,null,null,"0709",null,null,null,30899.8,30899.8,30899.8]
["8.1.14.","организация библиотечного обслуживания населения, комплектование и обеспечение сохранности библиотечных фондов библиотек муниципального округа","1) Федеральный закон от 06.10.2003 № 131-ФЗ \"Об общих принципах\nорганизации местного самоуправления в Российской Федерации\";\n2) Федеральный закон от 29.12.1994 №78-ФЗ \"О библиотечном деле\";\n\n\n","1)ст.16 пункт 1 подпункт 16;\n\n\n\n\n2)ст.15 п.2,п.3; ст.20, ст.23\n\n\n\n\n\n\n\n","1) 18.10.2003, не установлен;\n\n\n\n\n2) 02.01.1995, не установлен\n\n\n","1) Закон Нижегородской области от 01.11.2008 №147-З \"О библиотечном деле в Нижегородской области\"","1) гл.2 статья 6","1) с 01.01.2009, не установлен","Постановление Правительства Нижегородской области от 13.08.2002 №197 \"Об утверждении Программы формирования и сохранения библиотечных фондов как части культурного наследия Нижегородской области на 2003 - 2005 гг.\"","в целом","13.08.2002 ,не установлен","0801",null,null,null,19789.599999999999,20589.599999999999,20548.8]
["8.1.15.","создание условий для организации досуга и обеспечения жителей муниципального округа услугами организаций культуры","1) Федеральный закон от 06.10.2003 № 131-ФЗ \"Об общих принципах\nорганизации местного самоуправления в Российской Федерации\n\n\n","1)ст.16 пункт 1 подпункт 17\n\n\n\n","1) 18.10.2003, не установлен\n",null,null,null,"Постановление Правительства Нижегородской области от 31.12.1996 №333 \"Об утверждении положения об основах хозяйственной деятельности и финансирования организаций культуры и искусства Нижегородской области\"","в целом","31.12.1996 , не установлен","0801             0804         1006",null,null,null,67178,67178,67178]
[null,"создание условий для расширения рынка сельскохозяйственной продукции, сырья и продовольствия","1) Федеральный закон от 06.10.2003 № 131-ФЗ \"Об общих принципах организации местного самоуправления в Российской Федерации\"","1) в целом","1) 06.10.2003, не установлен",{"$nulls":6},"0405",null,null,null,896.8,596.79999999999995,596.79999999999995]
["8.1.16.","обеспечение условий для развития на территории муниципального округа физической культуры, школьного спорта и массового спорта","1) Федеральный закон от 06.10.2003 № 131-ФЗ \"Об общих принципах\nорганизации местного самоуправления в Российской Федерации\";\n2) Федеральный закон от 04.12.2007 №329-ФЗ \"О физической культуре и спорте в Российской Федерации\";\n\n\n","1)ст.16 пункт 1 подпункт 19;\n\n\n\n\n2)ст.9\n\n\n\n\n\n\n\n","1) 18.10.2003, не установлен;\n\n\n\n\n2) 30.03.2008, не установлен\n\n\n","1) Закон Нижегородской области от 11.06.2009 №76-З \"О физической культуре и спорте в Нижегородской области\"","1) статья 13,14","1) с 30.06.2009, не установлен",null,null,null,"1102",null,null,null,55721.8,41649.300000000003,46863.199999999997]
["8.1.17.","организация проведения официальных физкультурно-оздоровительных и спортивных мероприятий муниципального округа","1) Федеральный закон от 06.10.2003 № 131-ФЗ \"Об общих принципах\nорганизации местного самоуправления в Российской Федерации\";\n2) Федеральный закон от 04.12.2007 №329-ФЗ \"О физической культуре и спорте в Российской Федерации\"\n\n\n","1)ст.16 пункт 1 подпункт 19;\n\n\n2)ст.9\n\n\n\n\n\n\n\n","1) 18.10.2003, не установлен;\n\n\n\n2) 30.03.2008, не установлен\n\n\n","1) Закон Нижегородской области от 11.06.2009 №76-З \"О физической культуре и спорте в Нижегородской области\"","1) статья 13,14","1) с 30.06.2009, не установлен",null,null,null,"1102                 ",null,null,null,713,713,713]
["8.1.18.","создание условий для массового отдыха жителей муниципального округа и организация обустройства мест массового отдыха населения","1) Федеральный закон от 06.10.2003 № 131-ФЗ \"Об общих принципах организации местного самоуправления в Российской Федерации\"","1) в целом","1) 06.10.2003, не установлен",{"$nulls":6},"0503    0505",null,null,null,4115.3,3748.7,3748.2]
["8.1.19.","организация ритуальных услуг и содержание мест захоронения","1) Федеральный закон от 06.10.2003 № 131-ФЗ \"Об общих принципах\nорганизации местного самоуправления в Российской Федерации\";\n2) Федеральный закон от 12.01.1996 № 8-ФЗ \"О погребении и похоронном\nделе\"\n\n\n","1)ст.16 пункт 1 подпункт 23;\n\n\n2)ст.26\n\n\n\n\n\n\n\n","1) 18.10.2003, не установлен;\n\n\n\n2) 12.01.1996, не установлен\n\n\n","1) Закон Нижегородской области от 08.08.2008 №97-З \"О погребении и похоронном деле в Нижегородской области\"","1) полностью;\n\n\n","1) 01.01.2009 не ограничен;\n\n\n",null,null,null,"0503       0505",null,null,null,2932.4,2932.4,2932.4]
["8.1.20.","участие в организации деятельности по накоплению (в том числе раздельному накоплению), сбору, транспортированию, обработке, утилизации, обезвреживанию, захоронению твердых коммунальных отходов","1) Федеральный закон от 06.10.2003 № 131-ФЗ \"Об общих принципах организации местного самоуправления в Российской Федерации\"","1) в целом","1) 06.10.2003, не установлен",{"$nulls":6},"0502",null,null,null,1770,8358,8358]
["8.1.21.","организация благоустройства территории муниципального округа (за исключением расходов на осуществление дорожной деятельности, а также расходов на капитальный ремонт и ремонт дворовых территорий многоквартирных домов, проездов к дворовым территориям многоквартирных домов населенных пунктов)","1) Федеральный закон от 06.10.2003 № 131-ФЗ \"Об общих принципах\nорганизации местного самоуправления в Российской Федерации\";\n\n\n\n","1)ст.16 пункт 1 подпункт 25;\n\n\n\n\n\n\n\n\n\n\n\n\n","1) 18.10.2003, не установлен;\n\n\n\n\n\n\n\n","1) Закон Нижегородской области от 10.09.2010 №144-З \"Об обеспечении чистоты и порядка на территории Нижегородской области\"","1) в целом","1) 05.10.2010 не ограничен;",null,null,null,"0503        0505",null,null,null,18396.900000000001,18423.900000000001,18396.900000000001]
["8.1.22.","утверждение генеральных планов муниципального округа, правил землепользования и застройки, утверждение подготовленной на основе генеральных планов муниципального округа документации по планировке территории, выдача градостроительного плана земельного участка, расположенного в границах муниципального округа, выдача разрешений на строительство (за исключением случаев, предусмотренных Градостроительным кодексом Российской Федерации, иными федеральными законами), разрешений на ввод объектов в эксплуатацию при осуществлении строительства, реконструкции объектов капитального строительства, расположенных на территории муниципального округа, утверждение местных нормативов градостроительного проектирования муниципального округа, ведение информационной системы обеспечения градостроительной деятельности, осуществляемой на территории муниципального округа, резервирование земель и изъятие земельных участков в границах муниципального округа для муниципальных нужд, осуществление муниципального земельного контроля в границах муниципального округа, осуществление в случаях, предусмотренных Градостроительным кодексом Российской Федерации, осмотров зданий, сооружений и выдача рекомендаций об устранении выявленных в ходе таких осмотров нарушений, направление уведомления о соответствии указанных в уведомлении о планируемых строительстве или реконструкции объекта индивидуального жилищного строительства или садового дома установленным параметрам и допустимости размещения объекта индивидуального жилищного строительства или садового дома на земельном участке, уведомления о несоответствии указанных в уведомлении о планируемом строительстве параметров объекта индивидуального жилищного строительства или садового дома установленным параметрам и (или) недопустимости размещения объекта индивидуального жилищного строительства или садового дома на земельном участке, уведомления о соответствии или несоответствии построенных или реконструированных объекта индивидуального жилищного строительства или садового дома требованиям законодательства о градостроительной деятельности при строительстве или реконструкции объектов индивидуального жилищного строительства или садовых домов на земельных участках, расположенных на территориях муниципальных округов, принятие в соответствии с гражданским законодательством Российской Федерации решения о сносе самовольной постройки, решения о сносе самовольной постройки или ее приведении в соответствие с установленными требованиями, решения об изъятии земельного участка, не используемого по целевому назначению или используемого с нарушением законодательства Российской Федерации, осуществление сноса самовольной постройки или ее приведения в соответствие с установленными требованиями в случаях, предусмотренных Градостроительным кодексом Российской Федерации","1) Федеральный закон от 06.10.2003 № 131-ФЗ \"Об общих принципах\nорганизации местного самоуправления в Российской Федерации\";\n2) Федеральный закон от 17.11.1995 № 169-ФЗ \"Об архитектурной\nдеятельности в Российской Федерации\";\n\n\n","1)ст.16 пункт 1 подпункт 26;\n\n\n2) ст.2 абз.7, ст.22\n\n\n\n\n\n\n\n\n\n\n\n\n","1) 18.10.2003, не установлен;\n\n\n\n2)20.11.1995, не установлен\n\n\n\n\n\n\n\n","1) Закон Нижегородской области от 14.07.2003 № 58-З \"О нормах\nпредоставления земельных участков на территории Нижегородской\nобласти\";\n2) Закон Нижегородской области от 07.09.2007 № 110-З \"Об охране\nозелененных территорий Нижегородской области\"","1)в целом\n\n\n\n\n2) ст. 7","1) 14.07.2003, не установлен;\n\n\n\n\n2) 07.09.2007, не установлен",null,null,null,"0412",null,null,null,735.4,735.4,735.4]
["8.1.23.","организация и осуществление мероприятий по территориальной обороне и гражданской обороне, защите населения и территории муниципильного округа от чрезвычайных ситуаций природного и техногенного характера, включая поддержку в состоянии постоянной готовности к использованию систем оповещения населения об опасности, объектов гражданской обороны, создание и содержание в целях гражданской обороны запасов материально-технических, продовольственных, медицинских и иных средств","1) Федеральный закон от 06.10.2003 № 131-ФЗ \"Об общих принципах организации местного самоуправления в Российской Федерации\";                                                 2) Федеральный закон от 21.12.1994 №68-ФЗ \"О защите населения и территорий от чрезвычайных ситуаций природного и теногенного характера\"","1) в целом;                                                                                                                                                                                                                                                2) ст 11 п2 а,в","1) 06.10.2003, не установлен",{"$nulls":6},"0310                           0410",null,null,null,438,438,438]
["8.1.24.","содействие развитию малого и среднего предпринимательства","1) Федеральный закон от 06.10.2003 № 131-ФЗ \"Об общих принципах\nорганизации местного самоуправления в Российской Федерации\";\n\n\n\n","1)ст.16 пункт 1 подпункт 33;\n\n\n\n\n\n\n\n\n\n\n\n\n\n\n\n\n\n","1) 18.10.2003, не установлен;\n\n\n\n\n\n\n\n\n\n\n\n"," Закон Нижегородской области от 05.12.2008 №171-З \"О развитии малого и среднео предпринимательства в Нижегородской области\""," ст.8;\n\n\n\n\n"," 25.12.2008 не ограничен",null,null,null,"0412",null,null,null,500,300,300]
["8.1.25.","организация и осуществление мероприятий по работе с детьми и молодежью в муниципальном округе, городском округе","1) Федеральный закон от 06.10.2003 № 131-ФЗ \"Об общих принципах\nорганизации местного самоуправления в Российской Федерации\"\n\n\n\n\n","1)ст.16 пункт 1 подпункт 34\n\n\n\n\n\n\n\n\n\n\n","1) 18.10.2003, не установлен\n\n\n\n\n\n",{"$nulls":6},"0702   1006",null,null,null,271,271,271]
["8.2. ","Расходные обязательства, возникшие в результате принятия нормативных правовых актов муниципального округа, заключения договоров (соглашений) в рамках реализации полномочий органов местного самоуправления муниципального округа по решению вопросов местного значения муниципального округа, всего, в том числе",{"$nulls":9},"х",null,null,null,{"$f":"P46+P47+P48+P49+P50+P51+P52+P53+P54","v":80613.999999999985},{"$f":"Q46+Q47+Q48+Q49+Q50+Q51+Q52+Q53+Q54","v":72807.899999999994},{"$f":"R46+R47+R48+R49+R50+R51+R52+R53+R54","v":73099.299999999988}]
["8.2.1.","материально-техническое и финансовое обеспечение деятельности органов местного самоуправления без учета вопросов оплаты труда работников органов местного самоуправления","1) Федеральный закон от 06.10.2003 № 131-ФЗ \"Об общих принципах\nорганизации местного самоуправления в Российской Федерации\";\n2) Федеральный закон от 02.03.2007 № 25-ФЗ \"О муниципальной службе в\nРоссийской Федерации\";\n\n","1) ст. 34, п. 9;\n\n\n\n\n\n2) в целом;\n","1) 01.01.2006, не установлен;\n\n\n\n\n2) с 01.06.2007, не установлен","1) Закон Нижегородской области от 03.08.2007 № 99-З \"О муниципальной службе в Нижегородской области\";\n2) Закон Нижегородской области от 10.10.2003 № 93-З \"О денежном\nсодержании лиц, замещающих муниципальные должности в Нижегородской\nобласти\n","1) ст. 38;\n\n\n\n2) ст.6","1) 13.08.2007, не установлен;\n\n\n2) с 20.20.2003, не установлен",null,null,null,"0102            0103              0106                  0113               0705             0709               0804",null,null,null,8458.4,8458.4,8458.4]
["8.2.2.","материально-техническое и финансовое обеспечение деятельности органов местного самоуправления в части вопросов оплаты труда работников органов местного самоуправления","1) Федеральный закон от 06.10.2003 № 131-ФЗ \"Об общих принципах\nорганизации местного самоуправления в Российской Федерации\";\n2) Федеральный закон от 02.03.2007 № 25-ФЗ \"О муниципальной службе в\nРоссийской Федерации\";\n\n","1) ст. 34, п. 9;\n\n\n\n\n\n2) в целом;\n","1) 01.01.2006, не установлен;\n\n\n\n\n2) с 01.06.2007, не установлен","1) Закон Нижегородской области от 03.08.2007 № 99-З \"О муниципальной службе в Нижегородской области\";\n2) Закон Нижегородской области от 10.10.2003 № 93-З \"О денежном\nсодержании лиц, замещающих муниципальные должности в Нижегородской\nобласти\n","1) ст. 38;\n\n\n\n2) ст.6","1) 13.08.2007, не установлен;\n\n\n2) с 20.20.2003, не установлен",null,null,null,"0102            0103              0106                  0113             0709               0804",null,null,null,47597.2,43691.199999999997,43691.199999999997]
["8.2.3.","создание муниципальных учреждений, осуществление финансового обеспечения деятельности муниципальных казенных учреждений и финансового обеспечения выполнения муниципального задания бюджетными и автономными муниципальными учреждениями, а также осуществление закупок товаров, работ, услуг для обеспечения муниципальных нужд (в части общеотраслевых учреждений)","1) Федеральный закон от 06.10.2003 № 131-ФЗ \"Об общих принципах\nорганизации местного самоуправления в Российской Федерации\"\n","1) ст. 17, п. 1, п.п. 3\n\n\n\n\n\n","1) 18.10.2003, не установлен\n\n\n\n\n",{"$nulls":6},"0104                   0113       1201",null,null,null,7001.2,7071.2,7071.2]
["8.2.4.","учреждение печатного средства массовой информации для опубликования муниципальных правовых актов, обсуждения проектов муниципальных правовых актов по вопросам местного значения, доведения до сведения жителей муниципального образования официальной информации о социально-экономическом и культурном развитии муниципального образования, о развитии его общественной инфраструктуры и иной официальной информации","1) Федеральный закон от 06.10.2003 № 131-ФЗ \"Об общих принципах организации местного самоуправления в Российской Федерации\";\n2) Закон РФ от 27.12.1991 №2124-1 \"О средствах массовой информации\"","1) ст. 17, п. 1, п.п. 7;\n\n\n\n2) в целом","1) 01.01.2006, не установлен;\n\n\n\n2)01.01.1992, не установлен",{"$nulls":6},"1202",null,null,null,2892.5,2822.5,2822.5]
["8.2.5.","предоставление доплаты за выслугу лет к трудовой пенсии муниципальным служащим за счет средств местного бюджета","1) Федеральный закон от 02.03.2007 №25-ФЗ \"О муниципальной службе в Российской Федерации\"","1) в целом","1) 01.06.2007, не установлен","1) Закон Нижегородской области от 03.08.2007 № 99-З \"О муниципальной службе в Нижегородской области\";\n\n",null,"1) 25.08.2007, не установлен",null,null,null,"1001",null,null,null,4900,3000,3000]
["8.2.6.","Полномочия по обеспечению обучающихся по образовательным программа начального общего образования в государственных и муниципальных образовательных организациях бесплатным горячим питанием и по реализации мероприятий по обеспечению условий для организации бесплатного горячего питания обучающихся по образовательным программам начального общего образования в государственных и муниципальных образовательных организациях – часть 2.1 статьи 37 Федерального закона от 29 декабря 2012 г. № 273-ФЗ «Об образовании в Российской Федерации», пункт 3 статьи 3 Федерального закона от 1 марта 2020 г. № 47-ФЗ «О внесении изменений в Федеральный закон «О качестве и безопасности пищевых продуктов» и статью 37 Федерального закона «Об образовании в Российской Федерации»","1) Федеральный закон от 06.10.2003 № 131-ФЗ \"Об общих принципах организации местного самоуправления в Российской Федерации\"","1) в целом","1) 06.10.2003, не установлен",{"$nulls":6},"0702",null,null,null,6590,6590,6881.3]
["8.2.7.","Расходы за счет средств резервного фонда","1) Бюджетный кодекс Российской Федерации от 31.07.1998 №145-ФЗ","1) ст.81","1) 12.07.1999, не установлен","1) Закон Нижегородской области от 12.09.2007 №126-З \"О бюджетном процессе в Нижегородской области\"","1) ст.7","1) 20.09.2007, не установлен",null,null,null,"0111",null,null,null,2000,500,500]
["8.2.8.","Расходы на реализацию иных общемуниципальных вопросов (общемуниципальные мероприятия)","1) Федеральный закон от 06.10.2003 № 131-ФЗ \"Об общих принципах\nорганизации местного самоуправления в Российской Федерации\"\n","1) ст. 16, п. 1, \n\n\n\n\n\n\n\n","1) 18.10.2003, не установлен;\n\n\n\n\n",{"$nulls":6},"0113",null,null,null,1174.7,674.6,674.7]
["8.2.9.","Расходы за счет фонда поддержки территорий",{"$nulls":9},"0113",null,null,null,0,0,0]
["8.3. ","Расходные обязательства, возникшие в результате принятия нормативных правовых актов муниципального округа, заключения договоров (соглашений) в рамках реализации органами местного самоуправления муниципального округа прав на решение вопросов, не отнесенных к вопросам местного значения муниципального округа, всего",{"$nulls":9},"х",null,null,null,{"$f":"P56+P59","v":308.8},{"$f":"Q56+Q59","v":281.8},{"$f":"R56+R59","v":308.8}]
["8.3.1."," по перечню, предусмотренному ч. 1 ст. 16.1 Закона № 131-ФЗ, всего, в том числе",{"$nulls":9},"х",null,null,null,{"$f":"P57+P58","v":37.799999999999997},{"$f":"Q57+Q58","v":37.799999999999997},{"$f":"R57+R58","v":37.799999999999997}]
["8.3.1.1.","оказание поддержки общественным объединениям инвалидов, а также созданным общероссийскими общественными объединениями инвалидов организациям в соответствии с Федеральным законом от 24 ноября 1995 г. № 181-ФЗ «О социальной защите инвалидов в Российской Федерации»","1) Федеральный закон от 06.10.2003 № 131-ФЗ \"Об общих принципах организации местного самоуправления в Российской Федерации\"","1) в целом","1) 06.10.2003, не установлен","1) Закон Нижегородской области от 07.05.2009 № 52-З \"О государственной поддержке социально ориентированных некоммерческих организаций в Нижегородской области\"","1) в целом","1) 21.05.2009, не установлен",null,null,null,"1006",null,null,null,37.799999999999997,37.799999999999997,37.799999999999997]
["8.3.1.2.","осуществление мероприятий в сфере профилактики правонарушений, предусмотренных Федеральным законом от 23 июня 2016 г. № 182-ФЗ «Об основах системы профилактики правонарушений в Российской Федерации»",{"$nulls":9},"0113     1006",null,null,null,0,0,0]
["8.3.2. ","по участию в осуществлении государственных полномочий (не переданных в соответствии со статьей 19 Закона N 131-ФЗ), если это участие предусмотрено федеральными законами, всего, в том числе",{"$nulls":9},"х",null,null,null,{"$f":"P60","v":271},{"$f":"Q60","v":244},{"$f":"R60","v":271}]
["8.3.2.2.","дополнительные меры социальной поддержки",{"$nulls":9},"1003",null,null,null,271,244,271]
["8.4. ","Расходные обязательства, возникшие в результате принятия нормативных правовых актов муниципального округа, заключения договоров (соглашений) в рамках реализации органами местного самоуправления муниципального округа отдельных государственных полномочий, переданных органами государственной власти Российской Федерации и (или) органами государственной власти субъекта Российской Федерации, всего",{"$nulls":9},"х",null,null,null,{"$f":"P62","v":59824.9},{"$f":"Q62","v":63959.5},{"$f":"R62","v":63119.5}]
["8.4.2. ","за счет субвенций, предоставленных из бюджета субъекта Российской Федерации, всего, в том числе",{"$nulls":9},"х",null,null,null,{"$f":"P63+P64+P65+P66+P67+P68+P69+P70+P71+P72+P73","v":59824.9},{"$f":"Q63+Q64+Q65+Q66+Q67+Q68+Q69+Q70+Q71+Q72+Q73","v":63959.5},{"$f":"R63+R64+R65+R66+R67+R68+R69+R70+R71+R72+R73","v":63119.5}]
["8.4.2.1.","Материально-техническое и финансовое обеспечение деятельности органов государственной власти субъекта Российской Федерации (органов местного самоуправления) и государственных учреждений субъекта Российской Федерации (муниципальных учреждений), в том числе вопросов оплаты труда работников органов государственной власти субъекта Российской Федерации (органов местного самоуправления) и работников государственных учреждений субъекта Российской Федерации (муниципальных учреждений) (в части вопросов оплаты труда работников органов государственной власти субъекта Российской Федерации (органов местного самоуправления))","1) Федеральный закон от 06.10.2003 № 131-ФЗ \"Об общих принципах организации местного самоуправления в Российской Федерации\";\n","в целом\n\n\n\n","1) 01.01.2006, не установлен;\n\n\n\n","1) Закон Нижегородской области от 11.11.2005 №176-З \"О наделении органов местного самоуправления Нижегородской области отдельными государственными полномочиями по поддержке сельскохозяйственного производства\"\n2) Закон Нижегородской области от 21.10.2005 №140-З \"О наделении органов местного самоуправления отдельными государственными полномочиями в области образования\"","1) в целом\n2) в целом","1) 01.01.2006 - не установлена\n2) 01.01.2006 - не установлена",null,null,null,"0405             0709",null,null,null,5554.6,5554.6,5554.6]
["8.4.2.2.","Материально-техническое и финансовое обеспечение деятельности органов государственной власти субъекта Российской Федерации (органов местного самоуправления) и государственных учреждений субъекта Российской Федерации (муниципальных учреждений), в том числе вопросов оплаты труда работников органов государственной власти субъекта Российской Федерации (органов местного самоуправления) и работников государственных учреждений субъекта Российской Федерации (в части материально-технического и финансового обеспечения деятельности органов государственной власти субъекта Российской Федерации (органов местного самоуправления) без учета вопросов оплаты труда работников органов государственной власти субъекта Российской Федерации (органов местного самоуправления))","1) Федеральный закон от 06.10.2003 № 131-ФЗ \"Об общих принципах организации местного самоуправления в Российской Федерации\";\n","в целом\n\n\n\n","1) 01.01.2006, не установлен;\n\n\n\n","1) Закон Нижегородской области от 11.11.2005 №176-З \"О наделении органов местного самоуправления Нижегородской области отдельными государственными полномочиями по поддержке сельскохозяйственного производства\"\n2) Закон Нижегородской области от 21.10.2005 №140-З \"О наделении органов местного самоуправления отдельными государственными полномочиями в области образования\"","1) в целом\n2) в целом","1) 01.01.2006 - не установлена\n2) 01.01.2006 - не установлена",null,null,null,"0405             0709",null,null,null,724.7,724.7,724.7]
["8.4.2.3.","на поддержку сельскохозяйственного производства (за исключением мероприятий, предусмотренных федеральными целевыми программами), разработку и реализацию государственных программ (подпрограмм) субъекта Российской Федерации, содержащих мероприятия, направленные на развитие малого и среднего предпринимательства, и проектов в области развития субъектов малого и среднего предпринимательства (в части поддержки сельскохозяйственного производства в сфере животноводства без учета рыбоводства и рыболовства)","1) Федеральный закон от 06.10.2003 № 131-ФЗ \"Об общих принципах\nорганизации местного самоуправления в Российской Федерации\"","1) ст.16, п.1,пп.33;","1) 18.10.2003, не установлен;","Закон Нижегородской области от 11.11.2005 №176-З \"О наделении органов местного самоуправления Нижегородской области отдельными государственными полномочиями по поддержке сельскохозяйственного производства\"","в целом","01.01.2006 - не установлена",null,null,null,"0405",null,null,null,20575,21298.799999999999,21705.200000000001]
["8.4.2.4.","на поддержку сельскохозяйственного производства (за исключением мероприятий, предусмотренных федеральными целевыми программами), разработку и реализацию государственных программ (подпрограмм) субъекта Российской Федерации, содержащих мероприятия, направленные на развитие малого и среднего предпринимательства, и проектов в области развития субъектов малого и среднего предпринимательства (в части поддержки сельскохозяйственного производства в сфере растениеводства)","1) Федеральный закон от 06.10.2003 № 131-ФЗ \"Об общих принципах\nорганизации местного самоуправления в Российской Федерации\"","1) ст.16, п.1,пп.33;","1) 18.10.2003, не установлен;","Закон Нижегородской области от 11.11.2005 №176-З \"О наделении органов местного самоуправления Нижегородской области отдельными государственными полномочиями по поддержке сельскохозяйственного производства\"","в целом","01.01.2006 - не установлена",null,null,null,"0405",null,null,null,17614.2,20771.099999999999,19427.2]
["8.4.2.5.","на обеспечение детей-сирот и детей, оставшихся без попечения родителей, лиц из числа детей-сирот и детей, оставшихся без попечения родителей, жилыми помещениями","1) Федеральный закон от 06.10.2003 № 131-ФЗ \"Об общих принципах организации местного самоуправления в Российской Федерации\";\n\n","1) ст. 19, ч. 5 ;\n\n\n\n","1) 01.01.2006, не установлен;\n\n\n\n","1) Закон Нижегородской области от 30.09.2008 №116-З \"О наделении органов местного самоуправления муниципальных районов, муниципальных округов, городских округов Нижегородской области отдельными государственными полномочиями в области жилищных отношений\";\n2) Постановление Правительства Нижегородской области от 24.05.2021 №404 \"Об утверждении Порядка предоставления детям-сиротам и детям, оставшимся без попечения родителей, лицам из числа детей-сирот и детей, оставшихся без попечения родитедей, лицам которые относились к категории детей-сирот и достигли возраста 23 лет, благоустроенных жилых помещений специализированного жилищного фонда по договорам найма специализированных жилых помещений\"\n","1) пп.6 п.1 ст.2\n\n\n\n\n\n\n\n\n\n2) п.3","1) с 17.10.2008, не установлен;\n\n\n\n\n\n\n\n\n2) с 24.05.2021, не установлен",null,null,null,"1004",null,null,null,8987.9,7190.3,7190.3]
["8.4.2.6.","на определение перечня должностных лиц, уполномоченных составлять протоколы об административных правонарушениях, предусмотренных законами субъектов Российской Федерации, создание комиссий по делам несовершеннолетних и защите их прав и организации деятельности этих комиссий, создание административных комиссий, иных коллегиальных органов в целях привлечения к административной ответственности, предусмотренной законами субъектов Российской Федерации","1) Федеральный закон от 06.10.2003 № 131-ФЗ \"Об общих принципах организации местного самоуправления в Российской Федерации\";\n\n","1) ст. 19, ч. 5 ;\n\n\n\n","1) 01.01.2006, не установлен;\n\n\n\n","1) Закон Нижегородской области от 03.11.2006 №134- З \" О наделении органов местного самоуправления государственными полномочиями по созданию и организации деятельности комиссий по делам несовершеннолетних и защите их прав\"\n2)Закон Нижегородской области от 04.08.2011 № 91-З \"Об административных комиссиях в Нижегородской области и о наделении органов местного самоуправления муниципальных районов, муниципальных округов, городских округов Нижегородской области отдельными государственными полномочиями в области законодательства об административных правонарушениях\" "," в целом","1) 01.01.2007г, не ограничен                              2)18.08.2011, не ограничен",null,null,null,"0104            0505",null,null,null,603,603,603]
["8.4.2.7.","на организацию и осуществление деятельности по опеке и попечительству","1) Федеральный закон от 06.10.2003 № 131-ФЗ \"Об общих принципах организации местного самоуправления в Российской Федерации\";\n\n","в целом\n\n\n\n","1) 01.01.2006, не установлен;\n\n\n\n","1) Закон Нижегородской области от 07.09.2007 № 125-З \"О наделении органов местного самоуправления муниципальных районов,муниципальных округов и городских округов Нижегородской области отдельными государственными полномочиями по организации и осуществлению деятельности по опеке и попечительству в отношении несовершеннолетних граждан\"                                 2) Закон Нижегородской области от 06.04.2017 № 35-З \"О наделении органов местного самоуправления муниципальных районов и городских округов Нижегородской области отдельными государственными полномочиями по организации и осуществлению деятельности по опеке и попечительству в отношении совершеннолетних граждан\" ","1) в целом                     2) вцелом","1)01.01.2008, не ограничен                                                2)01.07.2017, не ограничен",null,null,null,"0104,        0709",null,null,null,1099.4000000000001,1099.4000000000001,1099.4000000000001]
["8.4.2.8.","Осуществление полномочий в области обращения с животными, предусмотренных законодательством в области обращения с животными, в том числе организации мероприятий при осуществлении деятельности по обращению с животными без владельцев, осуществление регионального государственного контроля (надзора) в области обращения с животными","1) Федеральный закон от 06.10.2003 № 131-ФЗ \"Об общих принципах организации местного самоуправления в Российской Федерации\";\n\n","1) ст. 19, ч. 5 ;\n\n\n\n","1) 01.01.2006, не установлен;\n\n\n\n","1)Закон Нижегородской области от 06.12.2011 N 177-З \"О межбюджетных отношениях в Нижегородской области\";\n2) Закон Нижегородской области \"О наделении органов местного самоуправления муниципальных районов и городских округов Нижегородской области отдельными государственными полномочиями по организации проведения мероприятий по предупреждению и ликвидации болезней животных, их лечению, отлову и содержанию безнадзорных животных, защите населения от болезней, общих для человека и животных\" от 03.10.2013 N129-З;\n3) Постановление Правительства Нижегородской области  от 03.07.2020 №538 \"Об утверждении Положения о порядке и условиях использования субвенций из областного бюджета бюджетам муниципальных районов и городских округов Нижегородской области на осуществление отдельных государственных полномочий по организации мероприятий при осуществлении деятельности по обращению с животными без владельцев\" ","1) статья 5, пункт 4; статья 11, пункты 1,;\n\n2) статья 3, пункт 1;\n\n\n\n\n\n\n\n\n\n\n\n\n\n3) в целом","1) 09.12.2011, не установлен;\n\n\n2).01.01.14; не установлен;\n\n\n\n\n\n\n\n\n\n\n\n\n\n3)с 03.07.20; не установлен",null,null,null,"0405",null,null,null,122,122,122]
["8.4.2.9.","на осуществление полномочий в сфере социальной защиты инвалидов – статья 15 Федерального закона от 24 ноября 1995 г. № 181-ФЗ «О социальной защите инвалидов в Российской Федерации», в сфере социальной защиты и социальной поддержки ветеранов – статья 10 Федерального закона от 12 января 1995 г. № 5-ФЗ «О ветеранах», в сфере социальной поддержки реабилитированным лицам и лицам, признанным пострадавшими от политических репрессий – статья 16 Закона Российской Федерации от 18 октября 1991 г. № 1761-1 «О реабилитации жертв политических репрессий»","1) Федеральный закон от 06.10.2003 № 131-ФЗ \"Об общих принципах организации местного самоуправления в Российской Федерации\"2) Федеральный закон от 12.01.1995 № 5-ФЗ \"О ветеранах\""," в целом"," 16.01.1995, не установлен","1) Закон Нижегородской области от 15.12.2022 № 195-З \"О мерах социальной поддержки ветеранов\" ;                                         2)Закон Нижегородской области от 30.09.2008г №116-З \"О наделении органов местного самоуправления муниципальных округов,городскихокругов Нижегородской области отдельными государственными полномочиями в области жилищных отношений\"","1) в целом                                                                                                                                                                        2) в целом","1) 01.01.2023, не ограничен",null,null,null,"1003",{"$nulls":4},2025.5,2108.5]
["8.4.2.10.","на установление дополнительных мер социальной поддержки и социальной помощи для отдельных категорий граждан, не предусмотренных подпунктом 24 пункта 2 статьи 26.3 Федерального закона от 6 октября 1999 г. № 184-ФЗ «Об общих принципах организации законодательных (представительных) и исполнительных органов государственной власти субъектов Российской Федерации»","1) Федеральный Закон от 29.12.2012 №273-ФЗ \"Об образовании в Российской Федерации\"\n2) Федеральный Закон от 06.10.1999 №184-ФЗ \"Об общих принципах организации законодательных (представительных) и исполнительных органов государственной власти субъектов Российской Федерации\"","1) в целом\n2) в целом","1) 01.09.2013 - не установлена\n2) 18.10.1999 - не установлена","1) Закон Нижегородской области от 21.10.2005 №140-З \"О наделении органов местного самоуправления отдельными государственными полномочиями в области образования\"","1) в целом\n","1) 01.01.2006 - не установлена",null,null,null,"0702              1004",null,null,null,3594.4,3594.4,3578.6]
["8.4.2.11.","на осуществление полномочий по предметам ведения Российской Федерации, а также совместного ведения по решению вопросов, не указанных в пункте 2 статьи 26.3 Федерального закона от 6 октября 1999 г. № 184-ФЗ «Об общих принципах организации законодательных (представительных) и исполнительных органов государственной власти субъектов Российской Федерации», если возможность осуществления расходов субъекта Российской Федерации на реализацию этих полномочий предусмотрена федеральными законами","1) Федеральный закон от 06.10.2003 № 131-ФЗ \"Об общих принципах организации местного самоуправления в Российской Федерации\";\n\n","1) ст. 19, ч. 5 ;\n\n\n\n","1) 01.01.2006, не установлен;\n\n\n\n","1) Закон Нижегородской области от 21.10.2005 №140-З \"О наделении органов местного самоуправления отдельными государственными полномочиями в области образования\"","в целом ","01.01.2006-не установлены",null,null,null,"0105              0203            0707",null,null,null,949.7,975.7,1006]
["8.5. ","Расходы на осуществление отдельных государственных полномочий, не переданных, но осуществляемых органами местного самоуправления за счет субвенций из бюджета субъекта Российской Федерации, в том числе",{"$nulls":9},"х",null,null,null,{"$f":"P75+P76","v":194948.8},{"$f":"Q75+Q76","v":194948.8},{"$f":"R75+R76","v":194948.8}]
["8.5.1.","обеспечение государственных гарантий реализации прав на получение общедоступного и бесплатного дошкольного образования в муниципальных дошкольных образовательных организациях, общедоступного и бесплатного дошкольного, начального общего, основного общего, среднего общего образования в муниципальных общеобразовательных организациях, обеспечение дополнительного образования детей в муниципальных общеобразовательных организациях, включая расходы на оплату труда, приобретение учебников и учебных пособий, средств обучения, игр, игрушек (за исключением расходов на содержание зданий и оплату коммунальных услуг), в соответствии с нормативами, определяемыми органами государственной власти субъектов Российской Федерации (в части начального общего, основного общего, среднего общего образования в муниципальных общеобразовательных организациях в сельской местности)","1) Федеральный закон от 06.10.2003 № 131-ФЗ \"Об общих принципах организации местного самоуправления в Российской Федерации\";\n2) Федеральный закон от 29.12.2012 №273-ФЗ \"Об образовании в Российской Федерации\";\n3) Постановление Правительства Российской Федерации от 26.12.2017 № 1642 «Об утверждении государственной программы Российской Федерации «Развитие образования»»  \n\n","1) ст. 20;\n\n\n\n\n\n2)ст.9 п.1\n\n\n\n3) в целом\n\n\n\n","1) 01.01.2006, не установлен;\n\n\n\n\n2) 01.09.2013, не установлен\n\n\n3) с 01.01.2018, не установлен","1) Закон Нижегородской области от 06.12.2011 № 177-З \"О межбюджетных отношениях в Нижегородской области\" ;\n2) Закон Нижегородской области от 28.11.2013 № 160-З \"О предоставлении органам местного самоуправления муниципальных районов и городских округов Нижегородской области субвенций на исполнение полномочий в области общего образования\" ","1) ст. 11;\n\n\n\n2) ст. 3","1) 09.12.2011, не ограничен;\n\n\n2) 01.01.2014, не ограничен",null,null,null,"0702",null,null,null,132795.29999999999,132795.29999999999,132795.29999999999]
["8.5.2.","обеспечение государственных гарантий реализации прав на получение общедоступного и бесплатного дошкольного образования в муниципальных дошкольных образовательных организациях, общедоступного и бесплатного дошкольного, начального общего, основного общего, среднего общего образования в муниципальных общеобразовательных организациях, обеспечение дополнительного образования детей в муниципальных общеобразовательных организациях, включая расходы на оплату труда, приобретение учебников и учебных пособий, средств обучения, игр, игрушек (за исключением расходов на содержание зданий и оплату коммунальных услуг), в соответствии с нормативами, определяемыми органами государственной власти субъектов Российской Федерации (в части дошкольного образования в муниципальных дошкольных образовательных организациях и муниципальных общеобразовательных организациях)","1) Федеральный закон от 06.10.2003 № 131-ФЗ \"Об общих принципах организации местного самоуправления в Российской Федерации\";\n2) Федеральный закон от 29.12.2012 №273-ФЗ \"Об образовании в Российской Федерации\";\n3) Постановление Правительства Российской Федерации от 26.12.2017 № 1642 «Об утверждении государственной программы Российской Федерации «Развитие образования»»  \n\n","1) ст. 20;\n\n\n\n\n\n2)ст.9 п.1\n\n\n\n3) в целом\n\n\n\n","1) 01.01.2006, не установлен;\n\n\n\n\n2) 01.09.2013, не установлен\n\n\n3) с 01.01.2018, не установлен","1) Закон Нижегородской области от 06.12.2011 № 177-З \"О межбюджетных отношениях в Нижегородской области\" ;\n2) Закон Нижегородской области от 28.11.2013 № 160-З \"О предоставлении органам местного самоуправления муниципальных районов и городских округов Нижегородской области субвенций на исполнение полномочий в области общего образования\" ","1) ст. 11;\n\n\n\n\n2) ст. 3","1) 09.12.2011, не ограничен;\n\n\n\n2) 01.01.2014, не ограничен",null,null,null,"0701",null,null,null,62153.5,62153.5,62153.5]
["8.7. ","Условно утвержденные расходы на первый и второй годы планового периода в соответствии с решением о местном бюджете муниципального округа                            ",{"$nulls":9},"х",null,null,null,"х",10839,22578]
[]
[]
["Начальник управления финансов _________________А.Н.Торопова"]
["Исполнитель: _________________ Голубева Н.П."]
[]
["\"__\" \"_______\" \"___\""]

{"sheet":"Лист1","index":1,"n_rows":0,"n_cols":0,"rows_kept":0,"cut":false,"hidden":false,"merged":[]}

{"sheet":"Лист2","index":2,"n_rows":0,"n_cols":0,"rows_kept":0,"cut":false,"hidden":false,"merged":[]}

{"sheet":"Лист3","index":3,"n_rows":0,"n_cols":0,"rows_kept":0,"cut":false,"hidden":false,"merged":[]}